bitfinex-derivatives/quotes_BTCF0:USTF0_20230901
["timestamp","ask_amount","ask_price","bid_price","bid_amount"]
[1693576156040,1.37992108,25924.0,25917.0,1.1707]
[1693576156341,1.37992108,25924.0,25917.0,0.1501]
[1693576156342,1.3206,25921.0,25917.0,0.1501]
[1693576156545,0.04291746,25920.0,25917.0,0.1501]
[1693576156737,0.03932108,25920.0,25919.0,1.0206]
[1693576157039,0.3,25921.0,25918.0,0.57686331]
[1693576157346,0.30386,25917.0,25914.0,0.1601]
[1693576157534,0.31902,25914.0,25910.0,0.1574]
[1693576157733,0.038,25910.0,25908.0,1.0206]
[1693576158040,0.3,25914.0,25908.0,0.9826]
[1693576158041,0.04291746,25909.0,25908.0,0.9826]
[1693576158232,0.03755,25909.0,25908.0,0.9826]
[1693576158741,0.05755,25909.0,25908.0,0.9636]
[1693576158946,0.05755,25909.0,25908.0,0.94431999]
[1693576159241,0.13978854,25909.0,25908.0,0.94431999]
[1693576159737,0.09687108,25909.0,25908.0,0.94431999]
[1693576160043,0.07687108,25909.0,25908.0,0.92531999]
[1693576160237,0.3,25910.0,25908.0,0.98000906]
[1693576160438,0.3,25910.0,25909.0,1.07714838]
[1693576160632,0.3,25914.0,25909.0,1.60008598]
[1693576160837,0.33932108,25914.0,25913.0,1.0206]
[1693576161036,0.3,25914.0,25913.0,1.07528907]
[1693576161337,0.3,25917.0,25913.0,1.67165784]
[1693576161528,0.3,25917.0,25916.0,1.0206]
[1693576161938,0.3,25917.0,25916.0,1.07714838]
[1693576162136,0.3,25917.0,25916.0,1.0206]
[1693576162338,0.32,25917.0,25915.0,1.0206]
[1693576162545,0.32,25917.0,25913.0,0.003]
[1693576162546,0.3,25914.0,25913.0,0.003]
[1693576162835,0.05890746,25913.0,25912.0,1.0206]
[1693576163033,0.06291746,25913.0,25912.0,1.00461]
[1693576163230,0.10046746,25913.0,25912.0,1.00461]
[1693576163438,0.336,25914.0,25912.0,1.00461]
[1693576163638,0.37532108,25914.0,25913.0,1.0206]
[1693576163942,0.356,25914.0,25913.0,1.0206]
[1693576164137,0.356,25914.0,25911.0,1.0206]
[1693576164341,0.32,25914.0,25911.0,1.01759]
[1693576164545,0.03755,25913.0,25911.0,0.92105085]
[1693576164739,0.35932108,25914.0,25911.0,0.92105085]
[1693576165036,0.03755,25913.0,25911.0,0.92105085]
[1693576165243,0.36932108,25914.0,25911.0,0.92105085]
[1693576165642,0.03755,25913.0,25906.0,0.1507]
[1693576165838,0.36932108,25914.0,25913.0,1.0206]
[1693576166044,0.05032108,25914.0,25913.0,1.0206]
[1693576166241,0.001,25914.0,25913.0,1.0206]
[1693576166437,0.001,25914.0,25913.0,1.71127727]
[1693576166744,0.001,25914.0,25913.0,1.73127727]
[1693576167139,0.001,25914.0,25913.0,1.71127727]
[1693576168237,0.3,25917.0,25913.0,1.71127727]
[1693576168444,0.33932108,25917.0,25916.0,1.0206]
[1693576168940,0.33932108,25917.0,25916.0,1.07528907]
[1693576169146,0.33932108,25917.0,25916.0,1.0206]
[1693576169348,0.03932108,25917.0,25916.0,1.13183745]
[1693576169738,0.038,25917.0,25916.0,1.13283745]
[1693576170540,0.038,25917.0,25916.0,1.71124699]
[1693576171241,0.023,25917.0,25916.0,1.71024699]
[1693576171448,0.024,25917.0,25916.0,1.72124699]
[1693576171749,0.06718108,25917.0,25916.0,1.0316]
[1693576172140,0.08373108,25917.0,25916.0,1.0576]
[1693576172341,0.08387108,25917.0,25916.0,1.11428907]
[1693576172844,0.04132108,25917.0,25916.0,1.71401957]
[1693576173048,0.003,25917.0,25916.0,1.72501957]
[1693576173951,0.003,25917.0,25916.0,1.14383745]
[1693576174146,0.00686,25917.0,25916.0,1.08728907]
[1693576174352,0.003,25917.0,25916.0,1.14383745]
[1693576174553,0.005,25917.0,25916.0,1.16983745]
[1693576175052,0.003,25917.0,25916.0,1.16883745]
[1693576175257,0.007,25917.0,25916.0,1.17083745]
[1693576175457,0.3,25923.0,25919.0,1.0206]
[1693576175648,0.3,25923.0,25922.0,1.0206]
[1693576175854,0.33755,25923.0,25922.0,1.07528907]
[1693576176158,0.48874402,25926.0,25922.0,1.70821779]
[1693576176351,0.3,25926.0,25925.0,1.0206]
[1693576176553,0.33755,25927.0,25925.0,1.0406]
[1693576176755,0.33755,25927.0,25926.0,1.0206]
[1693576176756,0.3,25927.0,25926.0,1.0206]
[1693576176957,0.33755,25927.0,25926.0,1.0206]
[1693576177153,0.38046746,25927.0,25926.0,1.0206]
[1693576177555,0.33755,25927.0,25926.0,1.0206]
[1693576177863,0.3,25927.0,25926.0,1.09714838]
[1693576178065,0.3,25927.0,25926.0,1.09528907]
[1693576178263,0.337,25927.0,25926.0,1.0436]
[1693576178554,0.37455,25927.0,25926.0,1.0436]
[1693576178860,0.38355,25927.0,25926.0,1.09828907]
[1693576179058,0.38355,25927.0,25926.0,1.0436]
[1693576179287,0.346,25927.0,25926.0,1.63878253]
[1693576179449,0.073,25927.0,25926.0,1.63978253]
[1693576179653,0.073,25927.0,25926.0,1.6944716]
[1693576180153,0.073,25927.0,25926.0,1.0246]
[1693576180564,0.11055,25927.0,25926.0,1.0246]
[1693576180757,0.11646746,25927.0,25926.0,1.0286]
[1693576180958,0.07355,25927.0,25926.0,1.0286]
[1693576181259,0.036,25927.0,25926.0,1.0486]
[1693576181661,0.09155,25927.0,25926.0,1.09728907]
[1693576181856,0.05655,25927.0,25926.0,1.0266]
[1693576182262,0.05655,25927.0,25926.0,1.0466]
[1693576182457,0.05655,25927.0,25926.0,1.0426]
[1693576182458,0.07855,25927.0,25926.0,1.0426]
[1693576182653,0.07855,25927.0,25926.0,1.0226]
[1693576182850,0.12146746,25927.0,25926.0,1.0226]
[1693576183054,1.16206746,25927.0,25926.0,0.002]
[1693576183854,1.15906746,25927.0,25926.0,0.002]
[1693576184861,1.13606746,25927.0,25926.0,0.001]
[1693576185057,1.14006746,25927.0,25917.0,1.0206]
[1693576185367,1.0206,25920.0,25914.0,1.0206]
[1693576185554,1.0206,25920.0,25914.0,1.0606]
[1693576185870,0.18984775,25921.0,25918.0,1.0206]
[1693576186067,0.04291746,25920.0,25916.0,1.0206]
[1693576186363,0.18984775,25921.0,25917.0,0.57576528]
[1693576186560,0.20984775,25921.0,25918.0,0.11123745]
[1693576186756,0.48984775,25922.0,25918.0,1.0606]
[1693576186956,0.18984775,25923.0,25921.0,1.0206]
[1693576187167,0.19370775,25924.0,25922.0,0.11123745]
[1693576187356,0.23125775,25924.0,25922.0,0.05654838]
[1693576187556,0.3,25925.0,25921.0,1.0206]
[1693576187557,0.48984775,25925.0,25923.0,0.11123745]
[1693576187767,0.48984775,25925.0,25923.0,1.59776684]
[1693576187958,0.48984775,25925.0,25923.0,1.61776684]
[1693576188263,0.48984775,25925.0,25924.0,0.11123745]
[1693576188861,0.51784775,25925.0,25924.0,0.11123745]
[1693576189164,0.51784775,25925.0,25924.0,0.13123745]
[1693576189860,0.55184775,25925.0,25924.0,0.13123745]
[1693576190769,0.52384775,25925.0,25924.0,0.13123745]
[1693576191169,0.55184775,25925.0,25924.0,0.13323745]
[1693576191669,0.59325775,25925.0,25924.0,0.022]
[1693576191866,0.00386,25924.0,25920.0,0.1504]
[1693576192071,0.00386,25924.0,25920.0,0.1904]
[1693576192072,0.04291746,25923.0,25920.0,0.1904]
[1693576192267,0.03755,25922.0,25920.0,0.1904]
[1693576192464,0.19397539,25924.0,25920.0,0.1904]
[1693576192665,0.04291746,25923.0,25920.0,0.1504]
[1693576192863,0.19397539,25924.0,25920.0,0.1704]
[1693576192864,0.03755,25922.0,25920.0,0.1704]
[1693576193065,0.04291746,25922.0,25920.0,0.22608907]
[1693576193273,0.19697539,25924.0,25920.0,0.1714]
[1693576193576,0.00686,25924.0,25921.0,1.13183745]
[1693576193771,0.19698501,25924.0,25921.0,1.59719075]
[1693576194070,0.19698501,25924.0,25922.0,0.11123745]
[1693576194268,0.003,25922.0,25921.0,1.59719075]
[1693576194460,0.04055,25922.0,25921.0,1.0206]
[1693576194665,0.003,25922.0,25921.0,1.09528907]
[1693576194861,0.04055,25922.0,25921.0,0.94409268]
[1693576195069,0.04055,25922.0,25921.0,0.92409268]
[1693576195376,0.003,25922.0,25921.0,0.92409268]
[1693576195575,0.004,25922.0,25921.0,0.95509268]
[1693576195874,0.004,25922.0,25921.0,1.08633013]
[1693576196273,0.03855,25922.0,25921.0,1.01078175]
[1693576196469,0.001,25922.0,25921.0,1.06733013]
[1693576196770,0.001,25922.0,25921.0,1.06633013]
[1693576196974,0.003,25922.0,25921.0,1.06733013]
[1693576197169,0.003,25922.0,25921.0,0.95609268]
[1693576197365,0.003,25922.0,25921.0,0.93609268]
[1693576197774,0.003,25922.0,25921.0,0.99078175]
[1693576197969,0.04055,25922.0,25921.0,0.032]
[1693576198376,0.04055,25922.0,25921.0,0.012]
[1693576198568,0.08346746,25922.0,25921.0,0.012]
[1693576198767,0.04055,25922.0,25921.0,0.012]
[1693576198972,0.08346746,25922.0,25921.0,0.032]
[1693576199172,0.38346746,25922.0,25921.0,0.032]
[1693576199567,0.38346746,25922.0,25921.0,0.012]
[1693576200279,0.38346746,25922.0,25921.0,0.032]
[1693576200474,0.34055,25922.0,25921.0,0.032]
[1693576200775,0.34055,25922.0,25921.0,0.012]
[1693576201172,0.38346746,25922.0,25921.0,0.032]
[1693576201368,0.38346746,25922.0,25921.0,0.012]
[1693576202368,0.38346746,25922.0,25921.0,0.032]
[1693576202572,0.303,25922.0,25921.0,1.0526]
[1693576202971,0.303,25922.0,25921.0,1.14383745]
[1693576203474,0.303,25922.0,25921.0,1.16383745]
[1693576204275,0.003,25922.0,25921.0,1.18383745]
[1693576204469,0.003,25922.0,25921.0,1.76051919]
[1693576204673,0.003,25922.0,25921.0,1.74051919]
[1693576204880,0.003,25922.0,25921.0,1.76051919]
[1693576205077,0.003,25922.0,25921.0,1.74051919]
[1693576205279,0.003,25922.0,25921.0,1.76051919]
[1693576206887,0.00057867,25924.0,25921.0,2.00175648]
[1693576207077,0.00057867,25924.0,25923.0,1.0206]
[1693576207277,0.00057867,25924.0,25923.0,1.0406]
[1693576207585,0.00057867,25924.0,25923.0,1.09714838]
[1693576208083,0.00057867,25924.0,25923.0,1.15183745]
[1693576208484,0.03812867,25924.0,25923.0,1.0406]
[1693576208686,0.34198867,25924.0,25921.0,1.0326]
[1693576208874,0.19012501,25923.0,25921.0,0.001]
[1693576209188,0.03755,25922.0,25921.0,0.08568907]
[1693576209385,0.19012501,25923.0,25921.0,0.08754838]
[1693576209684,0.49370368,25924.0,25921.0,0.009]
[1693576209882,0.53325368,25924.0,25922.0,0.63245937]
[1693576210083,0.30557867,25924.0,25923.0,1.0206]
[1693576210285,0.30557867,25924.0,25923.0,1.13183745]
[1693576210478,0.30357867,25924.0,25923.0,1.13183745]
[1693576210884,0.30057867,25924.0,25923.0,1.13183745]
[1693576211087,0.30057867,25924.0,25923.0,1.15183745]
[1693576211289,0.30057867,25924.0,25923.0,1.17183745]
[1693576211587,0.30057867,25924.0,25923.0,1.09714838]
[1693576211786,0.32057867,25924.0,25923.0,1.0206]
[1693576211983,0.36198867,25924.0,25921.0,1.0236]
[1693576212186,0.04291746,25923.0,25921.0,1.0236]
[1693576212380,0.50770368,25924.0,25923.0,0.001]
[1693576212576,0.54525368,25924.0,25923.0,0.001]
[1693576212787,0.56725368,25924.0,25923.0,0.6196]
[1693576213088,0.56725368,25924.0,25923.0,0.6396]
[1693576213282,0.40304613,25924.0,25923.0,0.6186]
[1693576213478,0.38104613,25924.0,25923.0,0.6176]
[1693576213885,0.34198867,25924.0,25923.0,0.6176]
[1693576214081,0.49506949,25924.0,25923.0,0.67414838]
[1693576214281,0.52720949,25924.0,25923.0,0.67514838]
[1693576214683,0.52720949,25924.0,25923.0,0.74983745]
[1693576215291,0.56475949,25924.0,25923.0,0.6386]
[1693576215479,0.37412867,25924.0,25923.0,0.6186]
[1693576215788,0.47404613,25924.0,25923.0,0.004]
[1693576216482,0.41112867,25924.0,25923.0,0.004]
[1693576216876,0.45404613,25924.0,25923.0,0.004]
[1693576217285,0.41112867,25924.0,25923.0,0.004]
[1693576217484,0.45404613,25924.0,25923.0,0.004]
[1693576218377,0.41498867,25924.0,25923.0,0.004]
[1693576218577,0.37357867,25924.0,25923.0,0.024]
[1693576218800,0.37357867,25924.0,25923.0,0.67628907]
[1693576218987,0.37357867,25924.0,25923.0,0.75283745]
[1693576219178,0.41112867,25924.0,25923.0,0.6416]
[1693576219381,0.41112867,25924.0,25923.0,0.6216]
[1693576219792,0.45404613,25924.0,25923.0,0.6216]
[1693576219987,0.41704613,25924.0,25923.0,0.6186]
[1693576220182,0.39212867,25924.0,25923.0,0.6196]
[1693576220382,0.34157867,25924.0,25923.0,0.69714838]
[1693576220583,0.37912867,25924.0,25923.0,0.6406]
[1693576220783,0.40404613,25924.0,25923.0,0.6196]
[1693576221085,0.53232638,25924.0,25923.0,0.69714838]
[1693576221490,0.53232638,25924.0,25923.0,0.75183745]
[1693576221685,0.53232638,25924.0,25923.0,0.73183745]
[1693576223284,0.53232638,25924.0,25923.0,0.75183745]
[1693576223901,0.53232638,25924.0,25923.0,0.69714838]
[1693576224094,0.53232638,25924.0,25923.0,0.67714838]
[1693576224294,0.53232638,25924.0,25923.0,0.6206]
[1693576224485,0.56987638,25924.0,25923.0,0.6406]
[1693576224681,0.61279384,25924.0,25923.0,0.6406]
[1693576224886,0.56987638,25924.0,25923.0,0.6206]
[1693576225394,0.61279384,25924.0,25923.0,0.6206]
[1693576225595,0.42204613,25924.0,25923.0,0.6206]
[1693576226195,0.44204613,25924.0,25923.0,0.6206]
[1693576226395,0.42204613,25924.0,25923.0,0.6206]
[1693576226600,0.44204613,25924.0,25923.0,0.6206]
[1693576227096,0.37912867,25924.0,25923.0,0.6206]
[1693576227393,0.34157867,25924.0,25923.0,0.6206]
[1693576227589,0.37912867,25924.0,25923.0,0.6206]
[1693576227784,0.53239233,25924.0,25923.0,0.6406]
[1693576227990,0.53239233,25924.0,25923.0,0.6206]
[1693576228296,0.53239233,25924.0,25923.0,0.73183745]
[1693576228493,0.61285979,25924.0,25923.0,0.6206]
[1693576228900,0.44204613,25924.0,25923.0,0.6206]
[1693576229988,0.42204613,25924.0,25923.0,0.6206]
[1693576230189,0.44204613,25924.0,25923.0,0.6206]
[1693576230387,0.37912867,25924.0,25923.0,0.6206]
[1693576230590,0.34157867,25924.0,25923.0,0.67714838]
[1693576230792,0.53241213,25924.0,25923.0,0.67714838]
[1693576230991,0.53241213,25924.0,25923.0,0.73183745]
[1693576231292,0.37912867,25924.0,25923.0,0.6206]
[1693576231699,0.42204613,25924.0,25923.0,0.6206]
[1693576233494,0.42590613,25924.0,25923.0,0.003]
[1693576233698,0.3,25921.0,25917.0,0.03074517]
[1693576233995,0.3,25921.0,25915.0,0.69443399]
[1693576233996,0.00386,25917.0,25915.0,0.6176]
[1693576234303,0.08432746,25916.0,25915.0,0.59862]
[1693576234800,0.00386,25916.0,25915.0,0.59862]
[1693576235400,0.00386,25916.0,25915.0,0.05089938]
[1693576235596,0.04141,25916.0,25915.0,0.05089938]
[1693576236097,0.08632746,25916.0,25915.0,0.05589938]
[1693576236495,0.08632746,25916.0,25915.0,0.07589938]
[1693576236695,0.08432746,25916.0,25915.0,0.05089938]
[1693576236898,0.08532746,25916.0,25915.0,0.66849938]
[1693576237100,0.05041,25916.0,25915.0,0.66849938]
[1693576237299,0.01286,25916.0,25915.0,0.70504776]
[1693576237503,0.01286,25916.0,25915.0,0.72504776]
[1693576237710,0.01286,25916.0,25915.0,0.77973683]
[1693576237999,0.01286,25916.0,25915.0,0.70504776]
[1693576238205,0.01286,25916.0,25915.0,0.70318845]
[1693576238502,0.01286,25916.0,25915.0,0.64849938]
[1693576238703,0.01286,25916.0,25915.0,0.77973683]
[1693576239008,0.05041,25916.0,25915.0,0.64849938]
[1693576239198,0.04655,25916.0,25915.0,0.64849938]
[1693576239506,0.09332746,25916.0,25915.0,0.64849938]
[1693576239700,0.09332746,25916.0,25915.0,0.66849938]
[1693576240306,0.09332746,25916.0,25915.0,0.64849938]
[1693576240904,0.05041,25916.0,25915.0,0.66849938]
[1693576241411,0.73092746,25916.0,25915.0,0.01190938]
[1693576241602,0.00386,25911.0,25910.0,0.6176]
[1693576242005,0.3,25912.0,25910.0,0.6576]
[1693576242305,0.3,25912.0,25911.0,0.72883745]
[1693576242697,0.3,25912.0,25911.0,0.67414838]
[1693576242900,0.3,25912.0,25911.0,0.97015529]
[1693576243101,0.3,25912.0,25911.0,0.99015529]
[1693576243505,0.3,25912.0,25911.0,0.74883745]
[1693576243803,0.303,25912.0,25911.0,1.04715136]
[1693576243999,0.307,25912.0,25911.0,1.04715136]
[1693576244705,0.307,25912.0,25911.0,0.80783745]
[1693576245101,0.007,25912.0,25911.0,0.88483649]
[1693576245295,0.004,25912.0,25911.0,0.84783649]
[1693576245508,0.007,25912.0,25911.0,0.88483649]
[1693576246395,0.007,25912.0,25911.0,0.80783745]
[1693576247508,0.35377746,25912.0,25911.0,0.039]
[1693576247713,0.35377746,25912.0,25907.0,0.1629]
[1693576247714,0.3,25909.0,25907.0,0.07699904]
[1693576248018,0.9176,25906.0,25903.0,0.07699904]
[1693576248202,0.6176,25904.0,25903.0,0.07699904]
[1693576248401,0.08046746,25904.0,25903.0,0.07699904]
[1693576248705,0.03755,25904.0,25903.0,0.07699904]
[1693576249011,0.03755,25904.0,25902.0,0.69459904]
[1693576249205,0.03755,25903.0,25902.0,0.69459904]
[1693576249402,0.03755,25903.0,25899.0,0.11549857]
[1693576249403,0.3,25903.0,25900.0,0.07699904]
[1693576249609,0.01899,25900.0,25897.0,0.07699904]
[1693576249907,0.3,25898.0,25896.0,0.6176]
[1693576250295,0.3,25898.0,25892.0,0.64854015]
[1693576250296,0.3,25894.0,25892.0,0.64854015]
[1693576250499,0.3,25894.0,25892.0,0.59862]
[1693576250709,0.3,25894.0,25892.0,0.61862]
[1693576250908,0.3,25894.0,25893.0,0.11123745]
[1693576251107,0.3,25894.0,25893.0,0.05654838]
[1693576251302,0.3,25894.0,25892.0,0.59862]
[1693576251497,0.3,25894.0,25893.0,0.67414838]
[1693576251704,0.3,25894.0,25893.0,0.69414838]
[1693576251898,0.3,25894.0,25893.0,0.76883745]
[1693576252703,0.00386,25896.0,25893.0,0.76883745]
[1693576252907,0.3,25897.0,25895.0,0.6176]
[1693576253109,0.3,25897.0,25896.0,0.6176]
[1693576253305,0.3,25897.0,25896.0,0.74883745]
[1693576253507,0.3,25897.0,25896.0,0.67414838]
[1693576253708,0.3,25897.0,25896.0,0.6176]
[1693576253903,0.3,25897.0,25896.0,0.67414838]
[1693576254108,0.30457927,25897.0,25896.0,0.69414838]
[1693576254314,0.30457927,25897.0,25896.0,0.6176]
[1693576254514,0.30357927,25897.0,25896.0,0.6176]
[1693576254719,0.30357927,25897.0,25893.0,0.018]
[1693576254720,0.38404673,25897.0,25894.0,0.6176]
[1693576254907,0.30357927,25897.0,25894.0,0.66827907]
[1693576255109,0.30957927,25897.0,25894.0,0.61359]
[1693576255305,0.6176,25895.0,25894.0,0.02]
[1693576255511,0.3,25894.0,25893.0,0.03032328]
[1693576255711,0.38046746,25894.0,25891.0,0.6176]
[1693576255911,0.34291746,25894.0,25892.0,0.05654838]
[1693576256120,0.3,25894.0,25891.0,0.6176]
[1693576256307,0.03755,25893.0,25891.0,0.6376]
[1693576256506,0.3,25894.0,25891.0,0.6176]
[1693576256706,0.3,25886.0,25880.0,0.11500813]
[1693576256910,0.9176,25886.0,25883.0,0.1511]
[1693576257109,0.00386,25882.0,25881.0,0.6176]
[1693576257311,0.3,25883.0,25881.0,0.59862]
[1693576257520,0.3,25883.0,25882.0,0.6176]
[1693576257815,0.3,25883.0,25882.0,0.67228907]
[1693576258018,0.3,25886.0,25882.0,1.89221559]
[1693576258314,0.3,25886.0,25877.0,0.3331841]
[1693576258315,0.00211,25882.0,25877.0,0.3331841]
[1693576258521,0.3,25886.0,25881.0,0.61549]
[1693576258712,0.3,25886.0,25883.0,0.59863]
[1693576258911,0.00386,25884.0,25883.0,0.59863]
[1693576259124,0.303,25886.0,25883.0,0.59863]
[1693576259414,0.00386,25882.0,25881.0,0.6176]
[1693576259620,0.00386,25882.0,25880.0,0.019]
[1693576259818,0.02285,25880.0,25878.0,0.6176]
[1693576260024,0.62146,25882.0,25878.0,0.61861]
[1693576260422,0.62146,25882.0,25878.0,0.59861]
[1693576260423,0.00386,25880.0,25878.0,0.59861]
[1693576260618,0.64446,25882.0,25881.0,0.019]
[1693576260820,0.00386,25880.0,25878.0,0.59861]
[1693576261114,0.6406,25882.0,25879.0,0.6176]
[1693576261115,0.01086,25882.0,25879.0,0.6176]
[1693576261316,0.04841,25882.0,25880.0,0.6176]
[1693576261520,0.01086,25882.0,25880.0,0.6176]
[1693576261924,0.04841,25882.0,25880.0,0.6176]
[1693576262219,0.00686,25882.0,25880.0,0.67414838]
[1693576262415,0.01086,25882.0,25880.0,0.6176]
[1693576262609,0.00386,25880.0,25877.0,0.0301841]
[1693576262815,0.007,25882.0,25873.0,0.05887607]
[1693576262816,0.6176,25879.0,25875.0,0.159]
[1693576263017,0.62846,25882.0,25878.0,0.6176]
[1693576263211,0.00386,25880.0,25878.0,0.6376]
[1693576263522,0.01186,25882.0,25879.0,0.72883745]
[1693576263824,0.01186,25882.0,25879.0,0.6176]
[1693576264021,0.05477746,25882.0,25879.0,0.67228907]
[1693576264224,0.008,25882.0,25880.0,0.57938496]
[1693576264427,0.27829366,25891.0,25886.0,0.02170634]
[1693576264725,0.27829366,25891.0,25890.0,0.6176]
[1693576264926,0.27829366,25894.0,25890.0,0.67228907]
[1693576265133,0.27829366,25888.0,25887.0,0.5784437]
[1693576265331,0.27829366,25888.0,25885.0,0.6176]
[1693576265627,0.27829366,25890.0,25887.0,0.6176]
[1693576265824,0.021,25891.0,25889.0,0.6176]
[1693576266016,0.021,25891.0,25890.0,0.67228907]
[1693576266327,0.27829366,25893.0,25890.0,1.32793961]
[1693576266519,0.27829366,25893.0,25892.0,0.6176]
[1693576267115,0.27829366,25896.0,25892.0,0.67228907]
[1693576267424,0.27829366,25896.0,25895.0,0.6176]
[1693576267826,0.27829366,25896.0,25895.0,0.67414838]
[1693576268020,0.27829366,25896.0,25895.0,0.74883745]
[1693576268230,0.27829366,25900.0,25895.0,1.34845795]
[1693576268425,0.6176,25903.0,25899.0,0.6176]
[1693576268724,0.6176,25903.0,25896.0,0.02170634]
[1693576268725,0.27829366,25903.0,25901.0,0.6176]
[1693576269113,0.97153491,25908.0,25902.0,0.67228907]
[1693576269114,0.27829366,25906.0,25902.0,0.67228907]
[1693576269318,0.27829366,25906.0,25904.0,0.6176]
[1693576269518,0.27829366,25906.0,25904.0,0.57571369]
[1693576269725,0.27829366,25906.0,25904.0,0.52102462]
[1693576269922,0.32121112,25906.0,25904.0,0.52102462]
[1693576270122,0.32121112,25906.0,25900.0,0.1553]
[1693576270123,0.27829366,25903.0,25900.0,0.1553]
[1693576270425,0.04677746,25902.0,25901.0,0.003]
[1693576270620,0.70192746,25902.0,25901.0,0.003]
[1693576270819,0.72192746,25902.0,25901.0,0.003]
[1693576271525,0.27829366,25894.0,25893.0,0.1553]
[1693576271714,0.97636112,25894.0,25893.0,0.02]
[1693576272425,0.35876112,25894.0,25893.0,0.02]
[1693576272622,0.31584366,25894.0,25893.0,0.02]
[1693576272923,0.27829366,25891.0,25890.0,0.03110995]
[1693576273113,0.27829366,25891.0,25887.0,0.1549]
[1693576273114,0.00386,25890.0,25887.0,0.1549]
[1693576273319,0.00386,25890.0,25886.0,1.0203]
[1693576273518,0.27829366,25888.0,25886.0,1.0403]
[1693576273723,0.27829366,25888.0,25886.0,1.0603]
[1693576273923,0.00386,25886.0,25883.0,0.1631]
[1693576274212,1.0203,25887.0,25880.0,1.1752]
[1693576274213,0.00386,25884.0,25880.0,1.1752]
[1693576274423,0.00386,25886.0,25880.0,1.1952]
[1693576274629,0.27829366,25882.0,25880.0,1.1752]
[1693576274921,0.27829366,25882.0,25880.0,1.30643745]
[1693576275122,0.27829366,25882.0,25880.0,1.27174838]
[1693576275329,0.27829366,25882.0,25880.0,1.2152]
[1693576275520,0.27829366,25882.0,25881.0,0.05654838]
[1693576275924,0.27829366,25882.0,25881.0,0.07654838]
[1693576276525,0.27829366,25882.0,25881.0,0.07754838]
[1693576276730,0.28229366,25882.0,25881.0,0.13323745]
[1693576277029,0.28229366,25882.0,25881.0,0.00301]
[1693576277231,0.28529366,25882.0,25881.0,0.058]
[1693576277623,0.007,25882.0,25881.0,1.77035696]
[1693576277823,1.0769,25890.0,25882.0,0.02170634]
[1693576277824,0.27829366,25888.0,25882.0,0.02170634]
[1693576278129,0.00386,25890.0,25887.0,1.0203]
[1693576278327,0.3,25898.0,25887.0,1.0203]
[1693576278328,0.3,25904.0,25891.0,0.3]
[1693576278629,1.0203,25903.0,25897.0,1.0203]
[1693576278821,1.0403,25903.0,25898.0,0.00386]
[1693576279220,1.0203,25906.0,25900.0,1.0203]
[1693576279424,1.07528,25906.0,25900.0,1.0203]
[1693576280025,0.3,25900.0,25895.0,0.00386]
[1693576280230,1.0203,25898.0,25891.0,1.0203]
[1693576280423,1.0403,25898.0,25891.0,1.0203]
[1693576280626,1.07528,25898.0,25891.0,1.0203]
[1693576281325,1.07528,25898.0,25893.0,0.00386]
[1693576281525,1.07528,25898.0,25891.0,1.0573]
[1693576281831,0.05498,25898.0,25893.0,1.02416]
[1693576282232,0.05498,25898.0,25895.0,0.00386]
[1693576282429,0.03755,25897.0,25896.0,0.05468907]
[1693576282831,0.03498,25897.0,25896.0,0.11123745]
[1693576283029,0.03498,25897.0,25896.0,0.05468907]
[1693576283229,0.03498,25897.0,25896.0,0.11123745]
[1693576283636,0.003,25897.0,25896.0,1.15653745]
[1693576283943,0.003,25897.0,25896.0,2.05623973]
[1693576284134,0.003,25898.0,25896.0,2.01123973]
[1693576284327,0.003,25897.0,25896.0,0.90470228]
[1693576284532,0.003,25897.0,25896.0,1.92500228]
[1693576284722,0.006,25897.0,25896.0,2.09323973]
[1693576285231,0.006,25897.0,25896.0,2.07323973]
[1693576286232,0.003,25897.0,25896.0,2.04823973]
[1693576286428,0.003,25897.0,25896.0,2.08123973]
[1693576286630,0.001,25897.0,25896.0,2.05623973]
[1693576286825,0.001,25897.0,25896.0,2.04323973]
[1693576287028,0.004,25897.0,25896.0,2.06823973]
[1693576287228,0.004,25897.0,25896.0,1.99169135]
[1693576287538,0.03798,25897.0,25896.0,1.99250738]
[1693576287738,0.04098,25897.0,25896.0,2.02950738]
[1693576287931,0.006,25897.0,25896.0,2.08605576]
[1693576288130,0.04098,25897.0,25896.0,2.08605576]
[1693576288633,0.006,25897.0,25896.0,0.074]
[1693576288937,0.006,25897.0,25896.0,1.67085428]
[1693576289236,0.006,25897.0,25896.0,1.78209173]
[1693576289840,0.003,25897.0,25896.0,1.74509173]
[1693576290139,0.006,25897.0,25896.0,1.78209173]
[1693576290526,0.006,25897.0,25896.0,2.08209173]
[1693576290939,0.006,25897.0,25896.0,2.10209173]
[1693576293332,0.003,25897.0,25896.0,2.10209173]
[1693576293534,0.18947669,25910.0,25899.0,1.5]
[1693576293733,0.05498,25910.0,25906.0,0.00386]
[1693576293935,0.08046746,25909.0,25906.0,0.00386]
[1693576294158,0.05498,25910.0,25907.0,0.11123745]
[1693576294334,0.03755,25909.0,25906.0,0.00386]
[1693576294535,0.04291746,25908.0,25906.0,0.00386]
[1693576294742,0.04291746,25908.0,25902.0,0.3]
[1693576294743,0.05498,25908.0,25904.0,0.00386]
[1693576294936,0.00385,25906.0,25903.0,1.0203]
[1693576295135,0.02,25906.0,25903.0,1.0203]
[1693576295546,0.00385,25904.0,25903.0,1.0203]
[1693576295742,0.02,25904.0,25903.0,1.0203]
[1693576295943,0.05498,25904.0,25903.0,1.0203]
[1693576296144,0.05498,25904.0,25903.0,1.02416]
[1693576296442,0.05882,25904.0,25903.0,1.07684838]
[1693576296648,0.05498,25904.0,25903.0,1.08070838]
[1693576296845,0.03498,25904.0,25903.0,1.71796252]
[1693576297039,0.03498,25904.0,25903.0,1.13153745]
[1693576297247,0.05498,25904.0,25903.0,1.13153745]
[1693576297645,0.05598,25904.0,25903.0,1.14739745]
[1693576297847,0.03598,25904.0,25903.0,1.7276238]